[Event "European Women Blitz-ch 2024"]
[Site "Monaco"]
[Date "2025.01.10"]
[Round "5.16"]
[White "Schulze, Lara"]
[Black "Benmesbah, Natacha"]
[Result "0-1"]
[Annotator "TA"]
[ECO "B11"]
[WhiteElo "2266"]
[BlackElo "2259"]
[PlyCount "64"]
[EventDate "2025.01.06"]
[EventType "swiss"]
[EventCountry "MNC"]
[SourceTitle "playchess.com"]
[Source "ChessBase"]
[SourceQuality "1"]
[TimeControl "180+2"]

{[%evp 10,64,26,10,21,26,24,27,32,26,31,28,34,27,49,46,64,0,0,0,0,-18,-21,-14,9,10,15,23,27,34,37,-6,-10,-5,-9,-21,-31,-21,-33,-201,-186,-239,-249,-898,-104,-225,0,-895,-903,-29994,-29995,-29995,-29996,-29996,-2498,-2035,-2011]} 1. e4 {[%emt 0:00:01]} c6 {[%emt 0:00:00]} 2. Nf3 {[%emt 0:00:02]} d5 {[%emt 0:00:01]} 3. Nc3 {[%emt 0:00:01]} Bg4 {[%emt 0:00:02]} 4. h3 {[%emt 0:00:01]} Bxf3 {[%emt 0:00:00]} 5. Qxf3 {[%emt 0:00:01]} e6 {[%emt 0:00:01]} 6. Be2 {[%emt 0:00:02]} d4 {[%emt 0:00:02]} 7. Nb1 {[%emt 0:00:04]} Ne7 {[%emt 0:00:03]} 8. d3 {[%emt 0:00:03]} Ng6 {[%emt 0:00:05] White has an edge.} 9. O-O {[%emt 0:00:04]} Be7 {[%emt 0:00:26]} 10. Nd2 {[%emt 0:00:24]} Nd7 {[%emt 0:00:22]} 11. Qg3 {[%emt 0:00:26]} O-O {[%emt 0:00:08]} 12. f4 {[%emt 0:00:08]} f5 {[%emt 0:00:08]} 13. Bf3 {[%emt 0:00:13]} (13. Bh5 $14) 13... e5 $11 {[%emt 0:00:33]} 14. exf5 {[%emt 0:00:31]} exf4 {[%emt 0:00:02]} 15. Qh2 {[%emt 0:00:14]} Rxf5 {[%emt 0:00:10]} 16. Be4 {[%emt 0:00:05]} Rf6 {[%emt 0:00:10]} 17. Bxg6 {[%emt 0:00:10]} Rxg6 {[%emt 0:00:02]} 18. Qxf4 {[%emt 0:00:10]} Nf6 {[%emt 0:00:26] Active counter play!} 19. Nf3 {[%emt 0:00:03][%cal Of3h4] aiming for Nh4!} Nh5 {[%emt 0:00:19]} 20. Qxd4 {[%emt 0:00:36]} (20. Qe5 {keeps more tension.} Ng3 21. Re1 Bd6 22. Qxd4 Nf5 23. Qc4+) 20... Qxd4+ {[%emt 0:00:01]} 21. Nxd4 {[%emt 0:00:01]} Bc5 $1 {[%emt 0:00:01]} 22. Be3 {[%emt 0:00:08]} Re8 $1 {[%emt 0:00:03]} 23. Bf2 {[%emt 0:00:02]} Nf4 $36 {[%emt 0:00:11][%csl LRg2,LRh3][%mdl 2048] White is under pressure.} 24. c3 $2 {[%emt 0:00:15] [#]} (24. Kh1 $15) 24... Nxh3+ {[%emt 0:00:11]} ({But not} 24... Nxd3 25. b4 Bb6 26. Kh1 $17) 25. Kh2 {[%emt 0:00:01]} (25. Kh1 {might work better.} Nf4 26. Nf5) 25... Nf4 $19 {[%emt 0:00:01][%csl LRd3,LRg2]} 26. Bg3 $2 {[%emt 0:00:04]} (26. g3 Nxd3 27. b4) 26... Nh5 $2 {[%emt 0:00:08]} (26... Rh6+ $19 {and Black stays clearly on top.} 27. Bh4 Bxd4 (27... Rxh4+ $2 28. Kg3 $19) (27... Nxd3 28. Nf5 $17) 28. Rxf4 Be5) 27. Bf2 {[%emt 0:00:02]} (27. Rae1 $17 Rxe1 28. Bxe1) 27... Nf4 $2 {[%emt 0:00:01] [#]} (27... Bd6+ 28. Kh1 Nf4) 28. Bg3 $1 {[%emt 0:00:00]} Rh6+ {[%emt 0:00:01]} 29. Kg1 {[%emt 0:00:01]} Ne2+ {[%emt 0:00:02]} (29... Nxd3 $2 30. Rab1 $19) 30. Kf2 {[%emt 0:00:02]} Rf6+ {[%emt 0:00:00]} 31. Ke1 {[%emt 0:00:04]} Nxg3+ {[%emt 0:00:01]} (31... Nxd4+ $142 32. Be5 Rxe5+ 33. Kd1 Rxf1+ 34. Kd2 Re2#) 32. Kd2 {[%emt 0:00:02]} Nxf1+ {[%emt 0:00:02] Weighted Error Value: White=0.63/Black=0.53.  Loses game:     	White=1     	---        Missed win:     	---       	Black=1      Mistake:       	White=4     	---        Inaccurate:     	White=2     	---        OK:         	White=7     	Black=4      Best:        	White=3     	Black=3      Strong:       	White=1     	Black=2} 0-1

[Event "European Women Blitz-ch 2024"]
[Site "Monaco"]
[Date "2025.01.10"]
[Round "5.17"]
[White "Prochaieva, Tina"]
[Black "Papp, Petra"]
[Result "0-1"]
[Annotator "TA"]
[ECO "D85"]
[WhiteElo "1861"]
[BlackElo "2235"]
[PlyCount "100"]
[EventDate "2025.01.06"]
[EventType "swiss"]
[EventCountry "MNC"]
[SourceTitle "playchess.com"]
[Source "ChessBase"]
[SourceQuality "1"]
[TimeControl "180+2"]

{[%evp 16,100,-12,-20,-18,-43,7,0,10,-5,0,-34,-24,-33,0,0,16,-26,167,160,231,152,328,320,424,-22,-23,-16,-8,-4,2,0,15,12,19,9,6,4,19,0,21,-15,-21,-530,-519,-508,-511,-673,-676,-635,-567,-693,-701,-807,-759,-950,-946,-1034,-1008,-968,-941,-29983,-29984,-29984,-29985,-29985,-29984,-29986,-29987,-29985,-29986,-29986,-29985,-29986,-29985,-29985,-29986,-29991,-29992,-29996,-29997,-29997,-29993,-29998,-29994,-29994,-29995]} 1. d4 {[%emt 0:00:02]} Nf6 {[%emt 0:00:02]} 2. Nf3 {[%emt 0:00:00]} g6 {[%emt 0:00:01]} 3. c4 {[%emt 0:03:06]} Bg7 {[%emt 0:00:03]} 4. Nc3 {[%emt 0:00:00]} d5 {[%emt 0:00:00]} 5. cxd5 {[%emt 0:00:00]} Nxd5 {[%emt 0:00:03]} 6. Bd2 {[%emt 0:00:00]} c5 {[%emt 0:00:15]} 7. e4 {[%emt 0:00:00]} Nxc3 {[%emt 0:00:06]} 8. Bxc3 {[%emt 0:00:00]} cxd4 {[%emt 0:00:02]} 9. Nxd4 {[%emt 0:00:00]} O-O {[%emt 0:00:06]} 10. Be2 {[%emt 0:00:00]} b6 {[%emt 0:00:02]} ({Better is} 10... Qb6 $15 11. Nf3 Rd8) 11. O-O $11 {[%emt 0:00:00][%cal Oe4e5]} Bb7 {[%emt 0:00:01]} 12. Bf3 {[%emt 0:00:00][%cal Oe4e5]} Nd7 {[%emt 0:00:03]} 13. Rc1 {[%emt 0:00:00][%cal Oe4e5]} Ne5 {[%emt 0:00:02]} 14. Qe2 {[%emt 0:00:00]} a5 {[%emt 0:00:22]} 15. Rfd1 {[%emt 0:00:00][%cal Od4e6] aiming for Ne6!.} Ba6 {[%emt 0:00:05]} 16. Qd2 {[%emt 0:00:00]} Nd3 $2 {[%emt 0:00:03]} (16... Nxf3+ $11 17. gxf3 Ra7) 17. Nc6 $18 {[%emt 0:00:00]} Bxc3 {[%emt 0:01:30]} (17... Qd6 $16) 18. Rxc3 {[%emt 0:00:00]} (18. bxc3 $2 Qc7 19. Nd4 Nxc1 20. Rxc1 Qc5 $19) 18... Qd7 $2 {[%emt 0:00:11]} (18... Qc7 $16) 19. Be2 {[%emt 0:00:00]} ({Don't play} 19. Rxd3 Qxc6 (19... Bxd3 $2 {too greedy.} 20. e5 $18) 20. e5 Qe8 $18) 19... Rac8 {[%emt 0:00:07]} 20. Ne5 $2 {[%emt 0:00:01]} (20. Bxd3 $18 Rxc6 21. Bxa6) 20... Nxe5 $11 {[%emt 0:00:07][%cal Bd3e5,Be5d7,Bd7c5][%mdl 32]} 21. Bxa6 {[%emt 0:00:02]} Qxd2 {[%emt 0:00:06]} 22. Rxd2 {[%emt 0:00:02]} Rcd8 {[%emt 0:00:11]} 23. Rcc2 {[%emt 0:00:06]} Nd7 {[%emt 0:00:05]} 24. f3 {[%emt 0:00:05]} Nc5 {[%emt 0:00:00]} 25. Bf1 {[%emt 0:00:03]} Kg7 {[%emt 0:00:01]} 26. Kf2 {[%emt 0:00:02]} e5 {[%emt 0:00:01]} 27. g3 {[%emt 0:00:03]} f5 {[%emt 0:00:00]} 28. Ke3 {[%emt 0:00:04]} fxe4 {[%emt 0:00:02]} 29. fxe4 $2 {[%emt 0:00:01][%mdl 8192]} (29. Rxd8 $11 Rxd8 30. fxe4) 29... Rxd2 $19 {[%emt 0:00:01]} 30. Rxd2 {[%emt 0:00:02]} Rxf1 $11 {[%emt 0:00:01][%mdl 4096] Endgame KRN-KR} 31. a3 {[%emt 0:00:04]} Re1+ {[%emt 0:00:06]} 32. Kf3 {[%emt 0:00:05]} Rxe4 {[%emt 0:00:02]} 33. Rc2 {[%emt 0:00:04]} Rd4 {[%emt 0:00:02]} 34. Re2 {[%emt 0:00:02]} Kf6 {[%emt 0:00:01]} 35. g4 {[%emt 0:00:02]} g5 {[%emt 0:00:02]} 36. Kg3 {[%emt 0:00:04]} Rd3+ {[%emt 0:00:00]} 37. Kg2 {[%emt 0:00:01]} Ne6 {[%emt 0:00:01] ...Nf4+ is the strong threat.} 38. Rf2+ {[%emt 0:00:02]} Nf4+ {[%emt 0:00:01]} 39. Kg1 {[%emt 0:00:04]} Rd1+ {[%emt 0:00:00]} 40. Rf1 {[%emt 0:00:01]} Rxf1+ {[%emt 0:00:03]} 41. Kxf1 {[%emt 0:00:01] KN-KP} e4 {[%emt 0:00:00]} 42. Kf2 {[%emt 0:00:01]} Ke5 {[%emt 0:00:01]} 43. Ke3 {[%emt 0:00:01]} Nd5+ {[%emt 0:00:01]} 44. Ke2 {[%emt 0:00:01]} Kf4 {[%emt 0:00:00]} 45. h3 {[%emt 0:00:02]} e3 {[%emt 0:00:02]} 46. Ke1 {[%emt 0:00:03]} Kf3 {[%emt 0:00:01]} 47. Kf1 {[%emt 0:00:01]} e2+ {[%emt 0:00:01]} 48. Ke1 {[%emt 0:00:01]} Nf4 {[%emt 0:00:01]} 49. b4 {[%emt 0:00:04]} Ng2+ {[%emt 0:00:00]} 50. Kd2 {[%emt 0:00:01]} e1=Q+ {[%emt 0:00:03]} 0-1

[Event "European Women Blitz-ch 2024"]
[Site "Monaco"]
[Date "2025.01.10"]
[Round "5.18"]
[White "Injac, Teodora"]
[Black "Guichard, Pauline"]
[Result "1/2-1/2"]
[Annotator "TA"]
[ECO "A34"]
[WhiteElo "2453"]
[BlackElo "2357"]
[PlyCount "90"]
[EventDate "2025.01.06"]
[EventType "swiss"]
[EventCountry "MNC"]
[SourceTitle "playchess.com"]
[Source "ChessBase"]
[SourceQuality "1"]
[TimeControl "180+2"]

{[%evp 13,90,0,12,14,15,0,12,0,-12,0,385,387,394,397,469,480,651,399,493,489,544,545,515,431,437,421,547,537,579,420,1021,868,864,858,875,858,885,878,914,914,1152,911,876,560,1402,1394,1367,1356,1865,644,914,648,822,786,774,749,29980,743,29977,29978,29989,645,1300,0,847,0,0,0,0,0,0,0,0,0,0,0,0,0,0]} 1. Nf3 {[%emt 0:00:01]} Nf6 {[%emt 0:00:00]} 2. c4 {[%emt 0:00:01]} c5 {[%emt 0:00:02]} 3. Nc3 {[%emt 0:00:02]} Nc6 {[%emt 0:00:01]} 4. g3 {[%emt 0:00:11]} d5 {[%emt 0:00:02]} 5. cxd5 {[%emt 0:00:17]} Nxd5 {[%emt 0:00:02]} 6. Bg2 {[%emt 0:00:01]} Nc7 {[%emt 0:00:02]} 7. a3 {[%emt 0:00:10]} g6 {[%emt 0:00:24]} 8. h4 {[%emt 0:00:04]} Bg4 {[%emt 0:00:11]} 9. b4 {[%emt 0:00:12]} Bg7 {[%emt 0:00:22]} 10. Bb2 {[%emt 0:00:05]} cxb4 {[%emt 0:00:13]} 11. axb4 {[%emt 0:00:01]} Nxb4 $2 {[%emt 0:00:03][%mdl 8192]} (11... O-O $11) 12. Qa4+ $18 {[%emt 0:00:07]} Bd7 {[%emt 0:00:08]} 13. Qxb4 {[%emt 0:00:01]} O-O {[%emt 0:00:02]} 14. h5 {[%emt 0:00:07]} (14. Qxb7 Rb8 15. Qxa7 Rxb2 $16) 14... Na6 {[%emt 0:00:45]} 15. Qxb7 {[%emt 0:00:35]} Nc5 {[%emt 0:00:13]} 16. Qd5 {[%emt 0:00:04]} Rc8 {[%emt 0:00:07]} 17. hxg6 {[%emt 0:00:15]} hxg6 {[%emt 0:00:03]} 18. O-O {[%emt 0:00:47]} Qb6 {[%emt 0:00:07]} 19. Ba3 {[%emt 0:00:06]} Be6 {[%emt 0:00:12]} 20. Qg5 {[%emt 0:00:08]} Bf6 {[%emt 0:00:11]} 21. Qe3 {[%emt 0:00:03]} Qd6 {[%emt 0:00:28]} (21... Nb3 $142 22. Qxb6 axb6) 22. Ne4 {[%emt 0:00:07]} Nxe4 {[%emt 0:00:02][%cal Bc5e4,Be4d6,Bd6f5][%mdl 32]} 23. Bxd6 {[%emt 0:00:07]} Nxd6 {[%emt 0:00:01]} 24. Rxa7 {[%emt 0:00:04]} Rfd8 {[%emt 0:00:04]} 25. d3 {[%emt 0:00:06]} Nf5 {[%emt 0:00:03]} 26. Qf4 {[%emt 0:00:02]} Rc2 {[%emt 0:00:03]} 27. Rc1 {[%emt 0:00:07]} Rxe2 {[%emt 0:00:02]} 28. Qc7 {[%emt 0:00:03]} Rxd3 {[%emt 0:00:01]} 29. Ra8+ {[%emt 0:00:02]} Kh7 {[%emt 0:00:02]} 30. Qb8 {[%emt 0:00:01] g4 would now be deadly.} Bd5 {[%emt 0:00:02]} 31. Qg8+ {[%emt 0:00:02]} Kh6 {[%emt 0:00:01] [#]} 32. Nh4 $1 {[%emt 0:00:02]} Nxh4 {[%emt 0:00:01]} (32... Bxa8 33. Nxf5+) 33. Bxd5 {[%emt 0:00:01]} Rxd5 {[%emt 0:00:01]} 34. gxh4 {[%emt 0:00:02]} Rd4 {[%emt 0:00:01]} 35. Kf1 {[%emt 0:00:01]} (35. Qxf7 $142 Rxh4 36. Rg8 Rg4+ 37. Kf1 Rb2 38. Rc6 Rb1+ 39. Ke2 Ra1 40. Rxf6) 35... Rb2 {[%emt 0:00:02]} 36. Qxf7 {[%emt 0:00:01]} Rf4 {[%emt 0:00:02]} 37. Qf8+ {[%emt 0:00:02]} (37. Rh8+ $142 Bxh8 38. Qxf4+ Kh7 39. Rc7 Rb1+ 40. Kg2 Re1 41. Qf7+ Kh6 42. Rc8 (42. Rxe7 Rxe7 43. Qxe7 Bd4 44. Kf3 Bg7 45. Kg4 Bd4 46. Qf7 Bg7 47. h5 Kh7 48. hxg6+ Kh6 49. f4 Bh8 50. Qh7#)) 37... Kh5 {[%emt 0:00:00]} 38. Ke1 $2 {[%emt 0:00:05]} ({White must play} 38. Ra5+ $18 e5 39. Qc5) 38... Rfxf2 $2 {[%emt 0:00:02][%mdl 8192]} (38... Re4+ $11 39. Kf1 Rf4 40. Ra5+ e5) 39. Qg8 $2 {[%emt 0:00:03]} ({Better is} 39. Rc5+ $18 e5 40. Rc4 (40. Ra1 Rf4 $11) 40... Rbe2+ 41. Kd1 Rd2+ 42. Kc1) 39... Rbe2+ $11 {[%emt 0:00:02]} 40. Kd1 {[%emt 0:00:01]} Rd2+ {[%emt 0:00:01]} 41. Ke1 {[%emt 0:00:00]} Rfe2+ {[%emt 0:00:01]} 42. Kf1 {[%emt 0:00:01]} Rf2+ {[%emt 0:00:01]} 43. Ke1 $1 {[%emt 0:00:03]} Rfe2+ {[%emt 0:00:04]} 44. Kf1 {[%emt 0:00:01]} Rf2+ {[%emt 0:00:05]} 45. Ke1 $1 {[%emt 0:00:01] White wants to mate with Qh7+.} Rfe2+ {[%emt 0:00:01]} 1/2-1/2

[Event "European Women Blitz-ch 2024"]
[Site "Monaco"]
[Date "2025.01.10"]
[Round "6.1"]
[White "Paehtz, Elisabeth"]
[Black "Kulon, Klaudia"]
[Result "1/2-1/2"]
[Annotator "TA"]
[ECO "A48"]
[WhiteElo "2428"]
[BlackElo "2393"]
[PlyCount "64"]
[EventDate "2025.01.06"]
[EventType "swiss"]
[EventCountry "MNC"]
[SourceTitle "playchess.com"]
[Source "ChessBase"]
[SourceQuality "1"]
[TimeControl "180+2"]

{[%evp 13,64,0,0,0,0,0,0,0,12,0,0,0,0,0,0,-11,-6,-18,-16,-3,-11,-52,-41,-96,-27,-38,-36,-33,-27,-21,-20,-14,-12,-12,-14,-30,25,17,14,20,24,29,43,0,0,0,0,0,0,0,0,0,15]} 1. d4 {[%emt 0:00:01]} Nf6 {[%emt 0:00:00]} 2. Nf3 {[%emt 0:00:01]} g6 {[%emt 0:00:01]} 3. Bg5 {[%emt 0:00:01]} Bg7 {[%emt 0:00:01]} 4. Nbd2 {[%emt 0:00:00]} O-O {[%emt 0:00:03]} 5. c3 {[%emt 0:00:01]} d6 {[%emt 0:00:02]} 6. e3 {[%emt 0:00:01]} b6 {[%emt 0:00:00]} 7. Be2 {[%emt 0:00:02]} Bb7 {[%emt 0:00:01]} 8. O-O {[%emt 0:00:01]} Nbd7 {[%emt 0:00:02]} 9. a4 {[%emt 0:00:01]} a6 {[%emt 0:00:05]} 10. Bh4 {[%emt 0:00:09]} h6 {[%emt 0:00:03]} 11. h3 {[%emt 0:00:04]} e5 {[%emt 0:00:06]} 12. Qb3 {[%emt 0:00:07]} a5 {[%emt 0:00:22]} 13. Rfd1 {[%emt 0:00:04]} Qe7 {[%emt 0:00:01]} 14. Bb5 {[%emt 0:00:13]} e4 {[%emt 0:00:07]} 15. Ne1 {[%emt 0:00:07]} g5 {[%emt 0:00:08]} 16. Bg3 {[%emt 0:00:01]} Kh8 {[%emt 0:00:01]} 17. Be2 {[%emt 0:00:03]} Nd5 {[%emt 0:00:06]} 18. Nxe4 {[%emt 0:00:34]} Qxe4 {[%emt 0:00:09]} (18... f5 $17 19. c4 Nxe3 (19... Qxe4 20. cxd5 Bxd5 21. Qc3 $15) 20. fxe3 Bxe4) 19. Bf3 $1 $11 {[%emt 0:00:01]} Qe6 {[%emt 0:00:05] aiming for ...Rab8.} 20. c4 {[%emt 0:00:00] [#]} Nxe3 $1 {[%emt 0:00:07]} 21. Qxe3 {[%emt 0:00:19]} Bxf3 {[%emt 0:00:03]} 22. Qxe6 {[%emt 0:00:05]} fxe6 {[%emt 0:00:01]} 23. Nxf3 {[%emt 0:00:02]} Rae8 {[%emt 0:00:07]} 24. Rd3 {[%emt 0:00:04][%cal Bd1d3,Bd3e3,Be3e4][%mdl 32]} Nf6 {[%emt 0:00:04]} ({Black should play} 24... e5 25. dxe5 Nxe5 26. Nxe5 Bxe5 27. Bxe5+ Rxe5) 25. Re1 {[%emt 0:00:04]} Nh5 {[%emt 0:00:04]} 26. Bh2 {[%emt 0:00:02][%cal Oc4c5]} Kh7 {[%emt 0:00:06][%cal Bh8h7,Bh7g6,Bg6f7][%mdl 32]} 27. b3 {[%emt 0:00:01]} Kg6 {[%emt 0:00:01]} 28. Rde3 {[%emt 0:00:02]} Kf7 {[%emt 0:00:08]} 29. Re4 {[%emt 0:00:05]} Nf6 {[%emt 0:00:02]} 30. R4e3 {[%emt 0:00:01]} Nh5 {[%emt 0:00:02]} 31. Re4 {[%emt 0:00:06]} Nf6 {[%emt 0:00:02]} 32. R4e3 {[%emt 0:00:03]} Nh5 {[%emt 0:00:02]} 1/2-1/2

[Event "European Women Blitz-ch 2024"]
[Site "Monaco"]
[Date "2025.01.10"]
[Round "6.2"]
[White "Matnadze Bujiashvili, Ann"]
[Black "Arabidze, Meri"]
[Result "1/2-1/2"]
[Annotator "TA"]
[ECO "E06"]
[WhiteElo "2315"]
[BlackElo "2457"]
[PlyCount "104"]
[EventDate "2025.01.06"]
[EventType "swiss"]
[EventCountry "MNC"]
[SourceTitle "playchess.com"]
[Source "ChessBase"]
[SourceQuality "1"]
[TimeControl "180+2"]

{[%evp 12,104,20,15,22,14,16,27,31,13,15,13,14,12,13,13,20,0,0,0,78,78,99,97,109,105,103,96,94,43,77,66,71,68,103,107,127,127,127,120,218,218,218,149,145,76,98,53,76,60,93,72,97,81,133,104,178,104,104,104,184,67,135,68,68,40,40,40,169,0,0,0,15,0,0,0,15,15,15,15,15,15,26,0,26,13,13,0,0,0,0,0,0,0,0]} 1. d4 {[%emt 0:00:02]} d5 {[%emt 0:00:00]} 2. Nf3 {[%emt 0:00:01]} Nf6 {[%emt 0:00:01]} 3. g3 {[%emt 0:00:01]} e6 {[%emt 0:00:03]} 4. Bg2 {[%emt 0:00:01]} Be7 {[%emt 0:00:01]} 5. c4 {[%emt 0:00:01]} O-O {[%emt 0:00:02]} 6. Nc3 {[%emt 0:00:01]} c6 {[%emt 0:00:02]} 7. O-O {[%emt 0:00:03]} a5 {[%emt 0:00:06]} 8. Nd2 {[%emt 0:00:05]} b5 {[%emt 0:00:07]} 9. cxb5 {[%emt 0:00:05]} cxb5 {[%emt 0:00:01]} 10. Nxb5 {[%emt 0:00:02]} Qb6 {[%emt 0:00:01]} 11. Nc3 {[%emt 0:00:06]} Qxd4 {[%emt 0:00:06]} 12. e4 {[%emt 0:00:08]} Bb7 {[%emt 0:00:48]} 13. exd5 {[%emt 0:00:12]} Nxd5 {[%emt 0:00:01]} 14. Nde4 {[%emt 0:00:07]} Qxd1 {[%emt 0:00:09]} 15. Rxd1 {[%emt 0:00:01]} Nd7 {[%emt 0:00:19]} (15... Na6 $11) 16. Nxd5 $16 {[%emt 0:00:13]} Bxd5 {[%emt 0:00:00]} 17. Nc3 $1 {[%emt 0:00:02]} Nf6 {[%emt 0:00:15]} (17... Bxg2 $2 18. Rxd7 Bh3 19. Rxe7 $18) 18. Nxd5 {[%emt 0:00:04]} Nxd5 {[%emt 0:00:01]} 19. Bxd5 {[%emt 0:00:11]} exd5 {[%emt 0:00:02]} 20. Be3 {[%emt 0:00:21]} (20. Rxd5 $16 Bd8 21. a4) 20... Bf6 {[%emt 0:00:23]} 21. Bd4 $1 {[%emt 0:00:02]} Bxd4 {[%emt 0:00:01]} 22. Rxd4 $14 {[%emt 0:00:01][%cal Ob2b3][%mdl 4096] Endgame KRR-KRR} Rfc8 {[%emt 0:00:20]} 23. Rxd5 {[%emt 0:00:08] White is more active.} Rc2 {[%emt 0:00:06]} 24. Rad1 {[%emt 0:00:03] White wants to mate with Rd8+.} g6 {[%emt 0:00:12]} 25. R1d2 {[%emt 0:00:01]} Rac8 {[%emt 0:00:14]} (25... Rc4 $16 26. b3 Rc1+ 27. Kg2 Ra6) 26. Rxc2 $18 {[%emt 0:00:05]} Rxc2 {[%emt 0:00:01]} 27. Rxa5 {[%emt 0:00:10]} Rxb2 {[%emt 0:00:01] KR-KR. White is a pawn up.} 28. g4 {[%emt 0:00:03]} (28. a4 $142) 28... Kg7 {[%emt 0:00:13]} 29. Ra6 {[%emt 0:00:03]} h6 {[%emt 0:00:07]} 30. Kg2 {[%emt 0:00:03]} Rc2 {[%emt 0:00:03]} 31. h3 {[%emt 0:00:03]} Rb2 {[%emt 0:00:00]} 32. Kg3 {[%emt 0:00:02]} Rc2 {[%emt 0:00:02]} (32... h5 $142) 33. a4 {[%emt 0:00:01]} Ra2 {[%emt 0:00:01]} (33... Rc3+ $16 34. Kg2 Rc4) 34. Kf3 {[%emt 0:00:09]} (34. h4 $1 $18) 34... Ra3+ $16 {[%emt 0:00:02]} 35. Kg2 {[%emt 0:00:01]} Ra2 {[%emt 0:00:00] [#]} (35... Kf8 $16) 36. a5 {[%emt 0:00:01]} (36. h4 $1 $18) 36... Kf8 {[%emt 0:00:09]} ({Black should try} 36... Ra4 $1 $14) 37. Ra7 {[%emt 0:00:03]} (37. h4 $16) 37... Kg7 $14 {[%emt 0:00:01]} 38. a6 {[%emt 0:00:02]} Kf6 {[%emt 0:00:00]} 39. Ra8 {[%emt 0:00:03]} Ra3 {[%emt 0:00:06] [#]} (39... Kg5 $14) 40. a7 $2 {[%emt 0:00:03]} ({White has to play} 40. f4 $1 $18) 40... Kg5 $1 $11 {[%emt 0:00:09]} 41. Kf1 {[%emt 0:00:30]} Kh4 {[%emt 0:00:04]} 42. Kg2 {[%emt 0:00:08]} (42. Rh8 {simplifies} Rxa7 43. Rxh6+ Kg5 44. Rh7) 42... Kg5 {[%emt 0:00:01]} 43. Kf1 {[%emt 0:00:10]} Kh4 {[%emt 0:00:00]} 44. Rh8 {[%emt 0:00:03]} Rxa7 {[%emt 0:00:03]} 45. Rxh6+ {[%emt 0:00:02]} Kg5 {[%emt 0:00:00]} 46. Rh7 {[%emt 0:00:03]} Kf6 {[%emt 0:00:02]} 47. h4 {[%emt 0:00:04]} Ra4 {[%emt 0:00:02]} 48. f3 {[%emt 0:00:04]} Ra2 {[%emt 0:00:01]} 49. Rh8 {[%emt 0:00:05]} Kg7 {[%emt 0:00:01]} 50. Re8 {[%emt 0:00:02]} Rh2 {[%emt 0:00:01]} 51. Re2 {[%emt 0:00:04]} Rxh4 {[%emt 0:00:02]} 52. Kg2 {[%emt 0:00:00]} Rh8 {[%emt 0:00:02]} 1/2-1/2